{"text_format":"3","workbook":"xlsx","n_sheets":1,"sheets":["Протокол ШЭ ВОШ по предмету"],"not_rendered":{"external_links":1,"defined_names":1},"read":"whole","date_system":"1900"}

{"sheet":"Протокол ШЭ ВОШ по предмету","index":0,"n_rows":19,"n_cols":15,"rows_kept":19}
["№","Фамилия","Имя","Отчество","Дата рождения","Пол","Участник с ОВЗ (да/нет)","Класс обучения","Класс участия","Балл","Максимальный балл","Статус","Призёр муниципального этапа прошлого года","ФИО учителя","Место работы учителя"]
[1,"Абдуллина ","Диляра ","Ильдаровна","2011-05-06","Ж","нет",5,5,17,25,"Участник",{"$f":"M11","v":"нет"},"Хамидуллин Айдар Рафисович","Муниципальное бюджетное общеобразовательное учреждение \"Средняя общеобразовательная школа №3\" г.Набережные Челны Республики Татарстан"]
[2,"Титов ","Семён ","Михайлович","2011-08-20","М","нет",5,5,20,25,"Победитель","нет","Хамидуллин Айдар Рафисович","Муниципальное бюджетное общеобразовательное учреждение \"Средняя общеобразовательная школа №3\" г.Набережные Челны Республики Татарстан"]
[3,"Фархутдинова ","Чулпан ","Фидаиловна","2011-07-08","Ж","нет",5,5,19,25,"Призер","нет","Хамидуллин Айдар Рафисович","Муниципальное бюджетное общеобразовательное учреждение \"Средняя общеобразовательная школа №3\" г.Набережные Челны Республики Татарстан"]
[4,"Закиров","Закир","Ильдарович","2010-02-12","Ж",{"$f":"G14","v":"нет"},6,{"$f":"H5","v":6},38,55,"Призер","нет","Хамидуллин Айдар Рафисович","Муниципальное бюджетное общеобразовательное учреждение \"Средняя общеобразовательная школа №3\" г.Набережные Челны Республики Татарстан"]
[5,"Габдрахманова","Ралина","Ришатовна","2010-08-23","Ж",{"$f":"G15","v":"нет"},6,{"$f":"H6","v":6},40,55,"Победитель","нет","Хамидуллин Айдар Рафисович","Муниципальное бюджетное общеобразовательное учреждение \"Средняя общеобразовательная школа №3\" г.Набережные Челны Республики Татарстан"]
[6,"Хамидуллин","Адель","Айдарович","2010-06-01","М",{"$f":"G16","v":"нет"},6,{"$f":"H7","v":6},37,55,"Участник","нет","Хамидуллин Айдар Рафисович","Муниципальное бюджетное общеобразовательное учреждение \"Средняя общеобразовательная школа №3\" г.Набережные Челны Республики Татарстан"]
[7,"Шамсиев ","Тимур ","Рустемович","2009-05-11","М","нет",7,{"$f":"H8","v":7},40,50,"Призер","нет","Хамидуллин Айдар Рафисович","Муниципальное бюджетное общеобразовательное учреждение \"Средняя общеобразовательная школа №3\" г.Набережные Челны Республики Татарстан"]
[8,"Салюков","Тимофей","Егорович","2009-01-21","М","нет",7,7,40,50,"Победитель","нет","Хамидуллин Айдар Рафисович","Муниципальное бюджетное общеобразовательное учреждение \"Средняя общеобразовательная школа №3\" г.Набережные Челны Республики Татарстан"]
[9,{"$f":"'[1]Победители, призеры, участники'!D9","v":"Халикова"},{"$f":"'[1]Победители, призеры, участники'!E9","v":"Валерия"},{"$f":"'[1]Победители, призеры, участники'!F9","v":"Дмитриевна"},"2010-05-11","Ж","нет",7,7,39,50,"Участник","нет","Хамидуллин Айдар Рафисович","Муниципальное бюджетное общеобразовательное учреждение \"Средняя общеобразовательная школа №3\" г.Набережные Челны Республики Татарстан"]
[10,{"$f":"'[1]Победители, призеры, участники'!D10","v":"Абрамова"},{"$f":"'[1]Победители, призеры, участники'!E10","v":" Елена "},{"$f":"'[1]Победители, призеры, участники'!F10","v":"Максимовна"},"2008-03-13","Ж",{"$f":"G17","v":"нет"},8,8,38,61,"Участник",{"$f":"M17","v":"нет"},"Хамидуллин Айдар Рафисович","Муниципальное бюджетное общеобразовательное учреждение \"Средняя общеобразовательная школа №3\" г.Набережные Челны Республики Татарстан"]
[11,{"$f":"'[1]Победители, призеры, участники'!D11","v":"Зяббарова"},{"$f":"'[1]Победители, призеры, участники'!E11","v":"Эндже"},{"$f":"'[1]Победители, призеры, участники'!F11","v":"Ильшатовна"},"2008-10-24","Ж",{"$f":"G18","v":"нет"},8,{"$f":"H12","v":8},43,61,"Участник",{"$f":"M18","v":"нет"},"Хамидуллин Айдар Рафисович","Муниципальное бюджетное общеобразовательное учреждение \"Средняя общеобразовательная школа №3\" г.Набережные Челны Республики Татарстан"]
[12,"Осипов","Никита","Валерьевич","2008-10-17","М",{"$f":"G19","v":"нет"},8,{"$f":"H13","v":8},45,61,"Участник",{"$f":"M19","v":"нет"},"Хамидуллин Айдар Рафисович","Муниципальное бюджетное общеобразовательное учреждение \"Средняя общеобразовательная школа №3\" г.Набережные Челны Республики Татарстан"]
[13,"Максимова ","Яна","Александровна","2007-09-12","Ж","нет",9,9,48,50,"Призер","нет","Хамидуллин Айдар Рафисович","Муниципальное бюджетное общеобразовательное учреждение \"Средняя общеобразовательная школа №3\" г.Набережные Челны Республики Татарстан"]
[14,"Трофимов ","Илья"," Евгеньевич","2007-01-06","М","нет",9,9,49,50,"Победитель","нет",{"$f":"N5","v":"Хамидуллин Айдар Рафисович"},"Муниципальное бюджетное общеобразовательное учреждение \"Средняя общеобразовательная школа №3\" г.Набережные Челны Республики Татарстан"]
[15,"Маслова","Ангелина","Андреевна","2007-02-03","Ж","нет",9,9,45,50,"Участник","нет",{"$f":"N6","v":"Хамидуллин Айдар Рафисович"},"Муниципальное бюджетное общеобразовательное учреждение \"Средняя общеобразовательная школа №3\" г.Набережные Челны Республики Татарстан"]
[16,"Бажанова "," Алина","Алексеевна","2006-01-20","Ж","нет",11,11,45,65,"Победитель","нет",{"$f":"N10","v":"Хамидуллин Айдар Рафисович"},"Муниципальное бюджетное общеобразовательное учреждение \"Средняя общеобразовательная школа №3\" г.Набережные Челны Республики Татарстан"]
[17,"Овчинников "," Никита","Алексеевич","2005-09-26","М","нет",11,11,42,65,"Призер","нет",{"$f":"N11","v":"Хамидуллин Айдар Рафисович"},"Муниципальное бюджетное общеобразовательное учреждение \"Средняя общеобразовательная школа №3\" г.Набережные Челны Республики Татарстан"]
[18,"Борисов","Владислав","Витальевич","2005-04-24","М","нет",11,11,39,65,"Участник","нет",{"$f":"N12","v":"Хамидуллин Айдар Рафисович"},"Муниципальное бюджетное общеобразовательное учреждение \"Средняя общеобразовательная школа №3\" г.Набережные Челны Республики Татарстан"]